Cogmind - Beta 16.1 @@@ ROGUE MODE // 2026.01.24 @ 19:46:45 // Winter2019/RPGLIKE Player: Luminiferous Result: Self-destructed Performance ------------- Evolutions (2) 1000 Regions Visited (3) 600 Robots Destroyed (13) 65 Value Destroyed (430) 430 Prototype IDs (0) 0 Alien Tech Used (0) 0 Bonus (200) 200 TOTAL SCORE: 2295 Bonus ------- Pacifist 200 Cogmind --------- Core Integrity 246/1000 Matter 300/300 Energy 100/100 System Corruption 0% Temperature Cool (0) Movement Flying (34) Location -8/Materials Parts ------- > --- POWER (1) -------- (None) > --- PROPULSION (3) --- Flight Unit Flight Unit Flight Unit > --- UTILITY (2) ------ Improved Signal Interpreter > --- WEAPON (2) ------- Hammer Mining Claw > --- INVENTORY (3) ---- Protomatter-51 Protomatter-9 Beam Rifle Peak State ------------ > --- POWER ------------ Light Nuclear Core > --- PROPULSION ------- Flight Unit Flight Unit > --- UTILITY ---------- Improved Signal Interpreter Improved Signal Interpreter > --- WEAPON ----------- Hammer Heavy Flail > --- INVENTORY -------- (None) [Rating: 15] Favorites ----------- Power Light Nuclear Core Engine Ion Engine Power Core Light Nuclear Core Propulsion Flight Unit Flight Unit Flight Unit Utility Signal Interpreter Processor Signal Interpreter Protection Medium Armor Plating Weapon Hammer Impact Weapon Hammer Slashing Weapon Mining Claw Build | -11 -10 -9 -8 ------- Run | Yrd Mat Mat Mat Slots Evolved 4 | 3 . . 1 Power . | . . . . Propulsion 2 | 1 . . 1 Utility 1 | 1 . . . Weapon 1 | 1 . . . Parts Attached 16 | 1 4 3 8 Power 5 | 1 2 . 2 Engine 3 | 1 2 . . Core 2 | . . . 2 Reactor . | . . . . Propulsion 3 | . 1 1 1 Treads . | . . . . Leg . | . . . . Wheel . | . . . . Hover . | . . . . Flight 3 | . 1 1 1 Utility 5 | . 1 1 3 Device . | . . . . Storage . | . . . . Processor 3 | . 1 . 2 Hackware . | . . . . Protection 2 | . . 1 1 Artifact . | . . . . Weapon 3 | . . 1 2 Energy Gun . | . . . . Energy Cannon . | . . . . Ballistic Gun . | . . . . Ballistic Cannon . | . . . . Launcher . | . . . . Special Weapon . | . . . . Impact Weapon 2 | . . 1 1 Slashing Weapon 1 | . . . 1 Piercing Weapon . | . . . . Special Melee Weapon . | . . . . Unidentified Prototypes . | . . . . Parts Lost 3 | . . . 3 Power 1 | . . . 1 Propulsion . | . . . . Utility 2 | . . . 2 Weapon . | . . . . Highest Loss Streak 1 | . . . 1 To Critical Strikes . | . . . . Average Backups 1 | 1 1 1 . Power 1 | 1 1 1 . Propulsion . | . . . . Utility . | . . . . Weapon . | . . . . Tool/Special . | . . . . Unused Backups 1 | . . . 1 Power . | . . . . Propulsion . | . . . . Utility . | . . . . Weapon 1 | . . . 1 Tool/Special . | . . . . Average Slot Usage (%) 59 | . 24 62 86 Engine 4 | . . 11 1 Core 4 | . . . 12 Flight 21 | . 11 25 28 Processor 13 | . 12 14 14 Protection 4 | . . 2 10 Impact Weapon 8 | . . 9 16 Peak Build Rating 15 | 1 3 7 15 Average Rating 5 | . 1 4 10 On Entrance 2 | . . 2 7 Avg Prop Armor Cover (%) . | . . . . Naked Turns 26 | . 26 . . Heaviest Build 17 | . . 14 17 Greatest Support 25 | 3 4 15 25 Greatest Overweight (x) . | . . . . Average Overweight (x) . | . . . . Largest Inventory Capacity 3 | 3 3 3 3 Average Capacity 2 | 2 3 3 3 Most Carried 3 | 2 3 3 3 Average Carried 1 | 1 2 2 . Final Capacity 3 | 3 3 3 3 Final Carried 3 | 2 3 2 3 Class Distribution -------------------- 87% | Mutant 12% | Gladiator Dominant Class ---------------- Mutant | -10/Materials Mutant | -9/Materials Mutant | -8/Materials Resources | -11 -10 -9 -8 ----------- Run | Yrd Mat Mat Mat Matter Collected 387 | 210 40 34 103 Remotely . | . . . . Salvage Created 390 | . . 109 281 Parts 13 | . . 6 7 Haulers Intercepted 1 | . . . 1 Recyclers Shooed . | . . . . Parts Field Recycled . | . . . . Retrieved Matter . | . . . . Parts Self-Destructed . | . . . . Prevented . | . . . . Parts Restored . | . . . . Kills | -11 -10 -9 -8 ------- Run | Yrd Mat Mat Mat Combat Hostiles Destroyed 9 | . . 3 6 Melee 4 | . . 1 3 Classes Destroyed 6 | . . 2 4 Hauler 1 | . . . 1 Operator 1 | . . . 1 Watcher 2 | . . 2 . Swarmer 1 | . . . 1 Grunt 1 | . . . 1 Sentry 7 | . . 3 4 Best Kill Streak 2 | . . 2 2 Combat Bots Only 1 | . . 1 1 Max Kills in Single Turn 1 | . . 1 1 Gunslinging . | . . . . Exploded . | . . . . Melee 1 | . . 1 1 Uniques/NPCs Destroyed . | . . . . Combat | -11 -10 -9 -8 -------- Run | Yrd Mat Mat Mat Hostile Shots Fired 171 | . 22 32 117 Missed 65 | . 15 12 38 Hits 106 | . 7 20 79 Melee 7 | . . . 7 Projectile 99 | . 7 20 72 Critical Strikes 4 | . . 2 2 Damage Taken 1499 | . 56 260 1183 Core 1126 | . 54 202 870 Absorbed by Shields . | . . . . Redirected to Core 686 | . 6 91 589 Core Remaining (%) 92 | 100 91 87 . Volleys Fired . | . . . . Largest . | . . . . Hottest . | . . . . Shots Fired . | . . . . Gun . | . . . . Cannon . | . . . . Launcher . | . . . . Special . | . . . . Kinetic . | . . . . Thermal . | . . . . Explosive . | . . . . Electromagnetic . | . . . . Robot Hit Streak . | . . . . Robot Miss Streak . | . . . . Penetration Max . | . . . . Secondary Targets . | . . . . Shots Hit Robots 49 | . . 8 41 Core Hits 6 | . . 1 5 Critical Kills . | . . . . Critical Parts Destroyed 4 | . . 3 1 Critical Strikes 5 | . . 3 2 Smash 5 | . . 3 2 Melee Attacks 67 | . . 12 55 Impact 61 | . . 12 49 Slashing 6 | . . . 6 Piercing . | . . . . Sneak Attacks 1 | . . . 1 Combat Hostiles . | . . . . Follow-up Attacks 5 | . . . 5 Damage Inflicted 1291 | . . 169 1122 Guns . | . . . . Cannons . | . . . . Explosions . | . . . . Melee 1291 | . . 169 1122 Ramming . | . . . . Kinetic . | . . . . Thermal . | . . . . Explosive . | . . . . Electromagnetic . | . . . . Impact 1174 | . . 169 1005 Slashing 117 | . . . 117 Piercing . | . . . . Highest Corruption . | . . . . Average Corruption . | . . . . Corruption Purged . | . . . . Corruption Blocked . | . . . . Overload Shots . | . . . . Overflow Damage 204 | . . 62 142 Projectiles 4 | . . . 4 Explosions . | . . . . Melee 200 | . . 62 138 Knockbacks 1 | . . . 1 Impact . | . . . . Kinetic . | . . . . Secondary 1 | . . . 1 Self-Inflicted Damage . | . . . . Shots . | . . . . Rammed . | . . . . Targets Rammed . | . . . . Kicked . | . . . . Crushed . | . . . . Highest Temperature 20 | . . 14 20 Average Temperature 8 | . . 8 7 Received Heat Transfer 402 | . . 141 261 Siege Activations . | . . . . Martial Activations . | . . . . Shielding Activations . | . . . . Robots Disrupted . | . . . . Combat Hostiles . | . . . . Robots Corrupted 9 | . . 4 5 Combat Hostiles 5 | . . 2 3 Parts Fried 14 | . . 10 4 Impact Corruptions 15 | . . 6 9 Robots Melted . | . . . . Combat Hostiles . | . . . . Parts Melted 1 | . . . 1 Heat Transferred . | . . . . Parts Sabotaged . | . . . . Parts Stolen . | . . . . Parts Stripped . | . . . . Power Chain Reactions . | . . . . Alert | -11 -10 -9 -8 ------- Run | Yrd Mat Mat Mat Maximum Alert Level . | . . . . Low Security (%) 100 | 100 100 100 100 Level 1 . | . . . . Level 2 . | . . . . Level 3 . | . . . . Level 4 . | . . . . Level 5 . | . . . . High Security . | . . . . Max Security . | . . . . Peak Influence 196 | . 35 196 176 Initial 82 | . . 5 82 Average 64 | . 4 102 91 Influence Increases 685 | . 60 331 294 Destroy 0b10 Robot/C 180 | . . 60 120 Destroy 0b10 Robot/NC 20 | . . 10 10 Destroy Leader 76 | . . 34 42 Successful Hack 2 | . . 2 . Destroy Structure 2 | . . . 2 Partial Spotted 45 | . . 15 30 Lose Combat Pursuer 360 | . 60 210 90 Influence Decreases 529 | . 45 150 334 Entered New Map 124 | . . 10 114 Time Decay 375 | . 45 140 190 Lost Part 30 | . . . 30 Squads Dispatched 6 | . 2 1 3 Investigation 1 | . . . 1 Extermination . | . . . . Reinforcement 4 | . 2 1 1 Assault . | . . . . Garrison 1 | . . . 1 Intercept . | . . . . Searches Triggered . | . . . . Construction Impeded . | . . . . Haulers Reinforced . | . . . . Active Scanning Responses . | . . . . Cargo Convoy Interrupts . | . . . . Stealth | -11 -10 -9 -8 --------- Run | Yrd Mat Mat Mat Distress Signals 2 | . . 1 1 Communications Jammed . | . . . . Distress Signals . | . . . . Times Spotted 68 | . 18 25 25 Peak Tracking Total 13 | . 6 13 8 Tactical Retreats 10 | . 2 5 3 Traps | -11 -10 -9 -8 ------- Run | Yrd Mat Mat Mat Traps Triggered 1 | . . 1 . Indirectly . | . . . . Trap Hack Attempts . | . . . . Triggered . | . . . . Disarmed . | . . . . Reprogrammed . | . . . . Reused . | . . . . Traps Extracted . | . . . . Installed . | . . . . Triggered . | . . . . Machines | -11 -10 -9 -8 ---------- Run | Yrd Mat Mat Mat Machines Disabled . | . . . . Max in Single Turn . | . . . . Garrison Access 1 | . . . 1 Machines Repaired . | . . . . Machines Dismantled . | . . . . Machines Sabotaged . | . . . . Overloaded Fab Kills . | . . . . Hacking | -11 -10 -9 -8 --------- Run | Yrd Mat Mat Mat Machines Accessed 4 | . 1 1 2 Terminals 2 | . 1 . 1 Fabricators . | . . . . Repair Stations . | . . . . Recycling Units . | . . . . Scanalyzers 1 | . . 1 . Garrison Access 1 | . . . 1 Total Hacks 8 | . 1 3 4 Successful 5 | . . 3 2 Failed 3 | . 1 . 2 Catastrophic 2 | . 1 . 1 Database Lockouts . | . . . . Manual 4 | . 1 . 3 Terminals 4 | . 1 . 3 Fabricators . | . . . . Repair Stations . | . . . . Recycling Units . | . . . . Scanalyzers 3 | . . 3 . Garrison Access 1 | . . . 1 Terminal Hacks 1 | . . . 1 Hauler Manifests 1 | . . . 1 Fabricator Hacks . | . . . . Repair Station Hacks . | . . . . Recycling Unit Hacks . | . . . . Scanalyzer 3 | . . 3 . Retrieve Study 3 | . . 3 . Garrison Access Hacks 1 | . . . 1 Seal Access 1 | . . . 1 Unauthorized Hacks . | . . . . Terminals . | . . . . Fabricators . | . . . . Repair Stations . | . . . . Recycling Units . | . . . . Scanalyzers . | . . . . Garrison Access . | . . . . Data Cores Recovered 1 | . . . 1 Used . | . . . . Hacking Detections 2 | . 1 . 1 Full Trace Events . | . . . . Feedback Events . | . . . . Feedback Blocked . | . . . . Robot Schematics Acquired . | . . . . Robots Built . | . . . . Authchips . | . . . . Time . | . . . . Total Robot Build Rating . | . . . . Part Schematics Acquired . | . . . . Parts Built . | . . . . Authchips . | . . . . Time . | . . . . Total Part Build Rating . | . . . . Part Studies Acquired 3 | . . 3 . Parts Repaired . | . . . . Time . | . . . . Parts Recycled . | . . . . Recycled Matter . | . . . . Retrieved Matter . | . . . . Retrieved Components . | . . . . Parts Scanalyzed . | . . . . Part Schematics Acquired . | . . . . Parts Damaged . | . . . . Bothacking | -11 -10 -9 -8 ------------ Run | Yrd Mat Mat Mat Used RIF Installer . | . . . . Robots Hacked . | . . . . Non-combat . | . . . . Combat . | . . . . Robot Hacks Applied . | . . . . Relay Couplers Released . | . . . . Fabnet Peak Effective % . | . . . . Robots Rewired . | . . . . Allies Hacked . | . . . . Hacks Repelled . | . . . . Allies | -11 -10 -9 -8 -------- Run | Yrd Mat Mat Mat Total Allies . | . . . . Largest Group . | . . . . Highest-Rated Group . | . . . . Highest-Rated Ally . | . . . . Total Orders . | . . . . Ally Attacks . | . . . . Total Damage . | . . . . Kills . | . . . . Allies Corrupted . | . . . . Allies Melted . | . . . . Intel | -11 -10 -9 -8 ------- Run | Yrd Mat Mat Mat Active Infowar (turns) . | . . . . Robot Analysis Total . | . . . . Derelict Logs Recovered . | . . . . Drone Launches . | . . . . Drone Recoveries . | . . . . Exploration | -11 -10 -9 -8 ------------- Run | Yrd Mat Mat Mat Turns Passed 1100 | 26 348 333 393 Spaces Moved 1826 | 45 496 711 574 Core 145 | 45 100 . . Treads . | . . . . Legs . | . . . . Wheels . | . . . . Hover . | . . . . Flight 1681 | . 396 711 574 Fastest Speed 34 | 50 40 37 34 Average Speed 38 | 50 42 37 36 Slowest Speed 50 | 50 50 40 37 Overloaded Moves . | . . . . Propulsion Burnouts . | . . . . Robots Hopped 21 | . 5 13 3 Potential Cave-ins . | . . . . Cave-ins Triggered . | . . . . Exploration Rate (%) 46 | 3 73 61 49 Regions Visited 3 Branch Regions . Pre-discovered Areas . | . . . . Known Exits Taken 2 | . 1 1 . Unknown Exits Taken 1 | 1 . . . Scrap Searched . | . . . . Spaces Dug 2 | . . . 2 Terrain Destroyed 2 | . . . 2 Melee 2 | . . . 2 Projectile . | . . . . AOE . | . . . . Terrain Rammed . | . . . . Walls Destroyed . | . . . . Machines Disabled . | . . . . Actions | -11 -10 -9 -8 --------- Run | Yrd Mat Mat Mat Total 2087 | 48 630 742 667 Wait 146 | . 130 10 6 Move 1783 | 44 485 686 568 Hop 19 | . 5 11 3 Pick Up 20 | 2 3 5 10 Fast Attach 6 | 1 1 3 1 Attach 10 | . 3 3 4 Detach 1 | . 1 . . Swap 4 | . . . 4 Drop 13 | 1 1 3 8 Fire . | . . . . Melee 62 | . . 12 50 Ram . | . . . . Kick . | . . . . Crush . | . . . . Escape Stasis . | . . . . Rewire . | . . . . Trap . | . . . . Miscellaneous 23 | . 1 9 13 Route ------- -11/Scrapyard -10/Materials (discovered 4 exits: *Mat x2 / *Min / *Sub) -9/Materials (discovered 3 exits: *Mat / *Min x2) -8/Materials (discovered 1 exit: *Sto) History --------- Turn | Location | Event 4 | -11/Scrapyard | Discovered new exit (range 16) 9 | -11/Scrapyard | Upgraded with Propulsion slot (x1) 9 | -11/Scrapyard | Upgraded with Utility slot (x1) 9 | -11/Scrapyard | Upgraded with Weapon slot (x1) 27 | -11/Scrapyard | Entered Materials 28 | -10/Materials | Met a group of wandering Federalists 105 | -10/Materials | Discovered new exit (range 10) 152 | -10/Materials | Discovered new exit (range 15) 203 | -10/Materials | Discovered new exit (range 9) 206 | -10/Materials | Identified exit to Subcaves 230 | -10/Materials | Identified exit to Mines 302 | -10/Materials | Build established: Mutant 373 | -10/Materials | Discovered new exit (range 5) 375 | -10/Materials | Identified exit to Materials 375 | -10/Materials | Entered another Materials area 377 | -9/Materials | Reached level 2 398 | -9/Materials | Discovered new exit (range 8) 440 | -9/Materials | Discovered new exit (range 8) 442 | -9/Materials | Identified exit to Materials 467 | -9/Materials | Discovered new exit (range 7) 480 | -9/Materials | Identified exit to Mines 708 | -9/Materials | Entered another Materials area 710 | -8/Materials | Reached level 3 731 | -8/Materials | Discovered new exit (range 11) 782 | -8/Materials | Identified exit to Storage 1060 | -8/Materials | Core integrity fell below 50% 1064 | -8/Materials | Garrison activated, responded to threat 1078 | -8/Materials | Upgraded with Propulsion slot (x1) 1082 | -8/Materials | Core integrity fell below 20% 1101 | -8/Materials | Self-destructed Last Messages --------------- 01076_ T-07 Excavator destroyed. 01076_ K-01 Serf collects debris. 01076_ Dropped Flight Unit+. 01076_ Penetrated by Slug. 01076_ K-01 Serf suffers critical hit (Destroy). 01076_ K-01 Serf destroyed. 01077_ K-01 Serf collects debris. 01078_ Upgraded: Propulsion Slot (+1) 01078_ Acquired Flight Unit+. 01079_ K-01 Serf collects debris. 01079_ Penetrated by Slug. 01080_ K-01 Serf collects debris. 01086_ Acquired 22 matter. 01086_ Penetrated by Slug. 01090_ Upgraded: Core Integrity (+400) 01090_ Connecting with Garrison Access... >>Seal Access door sealed. 01098_ Mining Claw follow-up attack on B-36 Bruiser. 01100_ Lgt. Nuclear Core destroyed. Map ----- +----------------------------------------------------+ | [ ### ######+##### ???#???????????????????????? | | ## ?? #???????????????????????? | | ## #???????????????????????? | | [ + """ #???????????????????????? | | ###+##### """"" ????????????????????????? | | ## # """"" #?#???????????????????????? | | !##] [ ] #%% """"" #? ???????????????????????? | | ]## + """ # ????????????????????????? | | ###### """ # # ????????????????????????? | | ?????# """ # +?????????????????????????? | | ?????# """ # #?????????????????????????? | | ?????######## #?????????????????????????? | | ????????????# =! #?????????????????????????? | | ############# =! #?????????????????????????? | | ! #?????????????????????????? | | =#?????????????????????????? | | =[#?????????????????????????? | | ####################/*%##????????????????????????? | | ?????????# ! # =!########?????????????????? | | ?????????# # #?????????????????? | | ?????????# + * #?????????????????? | | #######??# # == = #?????????????????? | | #??# == #! #### #?????????????????? | | """""#??# =[ ########## #?????????????????? | | """""#??# = =# l b# #?????????????????? | | """""#??# # ""@ /s #?????????????????? | | """""#??# #! G"g# #?????????????????? | | """""???########## a"" # #?????????????????? | | """""????????????# # #?????????????????? | | """""????????????# *g""" # #?????????????????? | | ????????????# """ # #?????????????????? | | ######????????????# = k""" # #?????????????????? | | ??????????????????# # #?????????????????? | | ??????????????????####/##### ?????????????????? | | ???????????????????????????# #?????????????????? | | ???????????????????????????? #?????????????????? | | ????????????????????????????####?????????????????? | | ?????????????????????????????????????????????????? | | ?????????????????????????????????????????????????? | | ?????????????????????????????????????????????????? | | ?????????????????????????????????????????????????? | | ?????????????????????????????????????????????????? | | ?????????????????????????????????????????????????? | | #????????????????????????????????????????????????? | | #????????????????????????????????????????????????? | | #????????????????????????????????????????????????? | | #????????????????????????????????????????????????? | | #????????????????????????????????????????????????? | | #????????????????????????????????????????????????? | | #????????????????????????????????????????????????? | +----------------------------------------------------+ Best States ------------- Heat Dissipation 25 Energy Generation 14 Energy Capacity 250 Matter Stores 300 Matter Capacity 300 Sight Range 16 Terrain Scan Density 10 Armor Coverage 225 Evasion (%) 63 Item Schematics ----------------- None Robot Schematics ------------------ None Fabricated ------------ Nothing Repaired ---------- Nothing Studied --------- Hammer | -9/Materials | Hacked Flight Unit | -9/Materials | Hacked Ion Engine | -9/Materials | Hacked Alien Tech Used ----------------- None Achievements -------------- None Challenges ------------ None RPGLIKE | -11 -10 -9 -8 --------- Run | Yrd Mat Mat Mat Levels Raised 2 | . . 1 1 XP Earned 7350 | 3000 100 1950 2300 XP Spent 4980 | 3000 . 100 1880 Upgrades 17 | 6 . 1 10 Propulsion Slot 2 | 1 . . 1 Utility Slot 1 | 1 . . . Weapon Slot 1 | 1 . . . Core Integrity 8 | . . . 8 Mass Support 2 | . . 1 1 Inventory Capacity 3 | 3 . . . Protomatter Created 191 | . . 93 98 Integrity Restored 486 | . 11 203 272 Core 372 | . . 183 189 Parts 114 | . 11 20 83 Protomatter Decayed . | . . . . Game ------ Seed CompanionFrostShielding Manual? 0 Play Time 00:13:42 Cumulative 156.6 hours Start 2026.01.24 @ 19:28:18 End 2026.01.24 @ 19:46:45 Sessions 3 Manual Loads 0 Difficulty Rogue Special Mode Winter2019/RPGLIKE Game No. 59 Rogue 57 Adventurer 2 Explorer 0 Win Type - Total 13 Types 2/1/2/1/1/1/1/1/2/1 Lore% 59 Gallery% 75 Achievement% 46 Wizard Run 0 Options --------- Layout 0 ASCII 0 Keyboard 0 Movement Mouse Keybinds 1 Fullscreen 2 Font 24/Smallcaps Map View 76x50 Zoom Use 0% Tactical HUD 1 Map Filters NONE Filters NONE Steam 1 RUN: 69e17b54-4f24-470a-b54e-053c3818825c